[Event "*** SCC Grand Prix: Titled Tuesday Blitz"]
[Site "Chess.com"]
[Date "2020.07.14"]
[Round "8"]
[White "Atanejhad"]
[Black "Natalya_Buksa"]
[Result "0-1"]
[WhiteElo "2397"]
[BlackElo "2537"]
[TimeControl "180+1"]
[EndTime "11:37:49 PDT"]
[Termination "Natalya_Buksa won on time"]

1. e4 {[%clk 0:03:00.9]} 1... c5 {[%clk 0:02:57.6]} 2. Nf3 {[%clk 0:03:00.2]}
2... Nc6 {[%clk 0:02:57.5]} 3. c3 {[%clk 0:03:00.3]} 3... Nf6 {[%clk 0:02:57.1]}
4. e5 {[%clk 0:03:00.6]} 4... Nd5 {[%clk 0:02:57.3]} 5. Bc4 {[%clk 0:03:01.3]}
5... Nb6 {[%clk 0:02:57.2]} 6. Bb3 {[%clk 0:03:01.9]} 6... d5 {[%clk 0:02:56.4]}
7. exd6 {[%clk 0:02:52.4]} 7... Qxd6 {[%clk 0:02:56.5]} 8. O-O {[%clk
0:02:48.6]} 8... Be6 {[%clk 0:02:56.7]} 9. d4 {[%clk 0:02:46.5]} 9... cxd4
{[%clk 0:02:49.5]} 10. Bxe6 {[%clk 0:02:44.9]} 10... Qxe6 {[%clk 0:02:49.2]} 11.
Nxd4 {[%clk 0:02:45.1]} 11... Nxd4 {[%clk 0:02:47.9]} 12. Qxd4 {[%clk 0:02:46]}
12... Qd7 {[%clk 0:02:47.9]} 13. Qh4 {[%clk 0:02:36.6]} 13... e6 {[%clk
0:02:47.4]} 14. Be3 {[%clk 0:02:32.4]} 14... Be7 {[%clk 0:02:47.2]} 15. Qg3
{[%clk 0:02:30.2]} 15... O-O {[%clk 0:02:47.4]} 16. Bd4 {[%clk 0:02:24.9]} 16...
f6 {[%clk 0:02:46.1]} 17. Nd2 {[%clk 0:02:17.4]} 17... Qc6 {[%clk 0:02:38.3]}
18. Rfe1 {[%clk 0:02:08.8]} 18... e5 {[%clk 0:02:37.5]} 19. Bxb6 {[%clk
0:02:08]} 19... Qxb6 {[%clk 0:02:37.3]} 20. Nc4 {[%clk 0:02:04.6]} 20... Qc5
{[%clk 0:02:27]} 21. Ne3 {[%clk 0:02:04.2]} 21... f5 {[%clk 0:02:19.7]} 22. Qh3
{[%clk 0:01:53.2]} 22... g6 {[%clk 0:02:16.6]} 23. Rad1 {[%clk 0:01:51.5]} 23...
Rad8 {[%clk 0:02:15.5]} 24. c4 {[%clk 0:01:34.7]} 24... Bg5 {[%clk 0:01:50.1]}
25. b3 {[%clk 0:01:27]} 25... Bxe3 {[%clk 0:01:33.2]} 26. Qxe3 {[%clk
0:01:27.9]} 26... Qxe3 {[%clk 0:01:30.9]} 27. fxe3 {[%clk 0:01:28.8]} 27... Kf7
{[%clk 0:01:30.9]} 28. Kf2 {[%clk 0:01:26.4]} 28... Ke6 {[%clk 0:01:30.8]} 29.
Ke2 {[%clk 0:01:25.3]} 29... g5 {[%clk 0:01:14.4]} 30. e4 {[%clk 0:00:59.5]}
30... fxe4 {[%clk 0:00:54.3]} 31. Ke3 {[%clk 0:00:59.2]} 31... g4 {[%clk
0:00:52.3]} 32. Rf1 {[%clk 0:00:19.5]} 32... Rd3+ {[%clk 0:00:44.8]} 33. Rxd3
{[%clk 0:00:14.6]} 33... Rxf1 {[%clk 0:00:42.7]} 34. Rd2 {[%clk 0:00:14.7]}
34... h5 {[%clk 0:00:32.8]} 35. Kxe4 {[%clk 0:00:12.4]} 35... Re1+ {[%clk
0:00:32.4]} 36. Kd3 {[%clk 0:00:12.6]} 36... Kf5 {[%clk 0:00:26]} 37. Rf2+
{[%clk 0:00:11.6]} 37... Ke6 {[%clk 0:00:26.3]} 38. Kd2 {[%clk 0:00:11.8]} 38...
Ra1 {[%clk 0:00:25.6]} 39. Ke3 {[%clk 0:00:12.1]} 39... h4 {[%clk 0:00:24.2]}
40. Rc2 {[%clk 0:00:11.6]} 40... Re1+ {[%clk 0:00:23.5]} 41. Kf2 {[%clk
0:00:11.4]} 41... Rd1 {[%clk 0:00:22.8]} 42. h3 {[%clk 0:00:10.8]} 42... gxh3
{[%clk 0:00:17]} 43. gxh3 {[%clk 0:00:11.7]} 43... Rd3 {[%clk 0:00:17.3]} 44.
Kg2 {[%clk 0:00:09.5]} 44... e4 {[%clk 0:00:17.4]} 45. b4 {[%clk 0:00:09.3]}
45... Ke5 {[%clk 0:00:15.8]} 46. c5 {[%clk 0:00:09.7]} 46... a6 {[%clk
0:00:13.4]} 47. a4 {[%clk 0:00:09.4]} 47... Rg3+ {[%clk 0:00:09.7]} 48. Kf1
{[%clk 0:00:05.6]} 48... Rxh3 {[%clk 0:00:09]} 49. b5 {[%clk 0:00:05.9]} 49...
axb5 {[%clk 0:00:07.8]} 50. axb5 {[%clk 0:00:06.8]} 50... Rf3+ {[%clk
0:00:07.6]} 51. Kg2 {[%clk 0:00:05.6]} 51... Rf7 {[%clk 0:00:07.4]} 52. c6
{[%clk 0:00:05.4]} 52... bxc6 {[%clk 0:00:07.8]} 53. Rxc6 {[%clk 0:00:05.9]}
53... Kd4 {[%clk 0:00:03.8]} 54. Rh6 {[%clk 0:00:05.4]} 54... Ke3 {[%clk
0:00:03.5]} 55. Rxh4 {[%clk 0:00:05]} 55... Rf5 {[%clk 0:00:03.2]} 56. b6 {[%clk
0:00:04.7]} 56... Rg5+ {[%clk 0:00:03.7]} 57. Kf1 {[%clk 0:00:04.2]} 57... Rb5
{[%clk 0:00:04.2]} 58. Rh6 {[%clk 0:00:04.1]} 58... Rb1+ {[%clk 0:00:04.3]} 59.
Kg2 {[%clk 0:00:03.9]} 59... Ke2 {[%clk 0:00:04.8]} 60. Re6 {[%clk 0:00:04]}
60... e3 {[%clk 0:00:05.3]} 61. Kg3 {[%clk 0:00:04.3]} 61... Rb4 {[%clk
0:00:05.7]} 62. Kg2 {[%clk 0:00:03.1]} 62... Kd2 {[%clk 0:00:05.6]} 63. Kf3
{[%clk 0:00:03.2]} 63... Rb3 {[%clk 0:00:05.8]} 64. b7 {[%clk 0:00:03.1]} 64...
Rxb7 {[%clk 0:00:05.5]} 0-1

[Event "*** SCC Grand Prix: Titled Tuesday Blitz"]
[Site "Chess.com"]
[Date "2020.07.14"]
[Round "8"]
[White "AnishOnYoutube"]
[Black "Grischuk"]
[Result "1-0"]
[WhiteElo "2881"]
[BlackElo "3038"]
[TimeControl "180+1"]
[EndTime "11:37:58 PDT"]
[Termination "AnishOnYoutube won on time"]

1. d4 {[%clk 0:03:00.7]} 1... Nf6 {[%clk 0:02:58.8]} 2. c4 {[%clk 0:03:00.9]}
2... g6 {[%clk 0:02:59.4]} 3. Nc3 {[%clk 0:02:58.5]} 3... Bg7 {[%clk 0:02:59.9]}
4. e4 {[%clk 0:02:59.3]} 4... d6 {[%clk 0:03:00.5]} 5. Nf3 {[%clk 0:02:59.8]}
5... O-O {[%clk 0:03:01.1]} 6. Be2 {[%clk 0:03:00.4]} 6... e5 {[%clk 0:03:01.5]}
7. O-O {[%clk 0:03:00.8]} 7... Nc6 {[%clk 0:03:01.7]} 8. d5 {[%clk 0:03:00.8]}
8... Ne7 {[%clk 0:03:02]} 9. b4 {[%clk 0:02:56.5]} 9... a5 {[%clk 0:03:01.7]}
10. bxa5 {[%clk 0:02:56.8]} 10... Rxa5 {[%clk 0:03:01.9]} 11. a4 {[%clk
0:02:56.1]} 11... Ne8 {[%clk 0:03:01.6]} 12. Ba3 {[%clk 0:02:50.2]} 12... c5
{[%clk 0:02:57.7]} 13. Bc1 {[%clk 0:02:42.5]} 13... h6 {[%clk 0:02:52.5]} 14.
Bd2 {[%clk 0:02:42.3]} 14... f5 {[%clk 0:02:39.8]} 15. exf5 {[%clk 0:02:38.2]}
15... Nxf5 {[%clk 0:02:39.5]} 16. Ne4 {[%clk 0:02:35]} 16... Ra6 {[%clk
0:02:39]} 17. Bd3 {[%clk 0:02:33.7]} 17... Nf6 {[%clk 0:02:21.4]} 18. Ra3 {[%clk
0:02:30.2]} 18... g5 {[%clk 0:02:10.8]} 19. h3 {[%clk 0:02:25.8]} 19... Nd4
{[%clk 0:01:28.4]} 20. Nxd4 {[%clk 0:02:25.3]} 20... exd4 {[%clk 0:01:29.3]} 21.
Nxf6+ {[%clk 0:02:10.8]} 21... Qxf6 {[%clk 0:01:29.2]} 22. f4 {[%clk 0:02:09.5]}
22... g4 {[%clk 0:01:20]} 23. hxg4 {[%clk 0:02:04.4]} 23... Qh4 {[%clk
0:01:20.6]} 24. Be2 {[%clk 0:01:58.6]} 24... d3 {[%clk 0:01:19.6]} 25. Rxd3
{[%clk 0:01:57.8]} 25... Bd4+ {[%clk 0:01:19.6]} 26. Be3 {[%clk 0:01:55.7]}
26... Bg7 {[%clk 0:01:17.5]} 27. Bf2 {[%clk 0:01:52.9]} 27... Qe7 {[%clk
0:01:12.1]} 28. g3 {[%clk 0:01:44.1]} 28... Bd7 {[%clk 0:01:11.3]} 29. Ra3
{[%clk 0:01:30.1]} 29... Rfa8 {[%clk 0:01:10.9]} 30. Re1 {[%clk 0:01:24.8]}
30... Rxa4 {[%clk 0:01:05.2]} 31. Rxa4 {[%clk 0:01:23.1]} 31... Rxa4 {[%clk
0:01:05.8]} 32. Bd3 {[%clk 0:01:18.8]} 32... Qf7 {[%clk 0:01:05.2]} 33. Qc2
{[%clk 0:01:10.2]} 33... Rb4 {[%clk 0:00:52.1]} 34. Bg6 {[%clk 0:00:50.6]} 34...
Qf6 {[%clk 0:00:41.2]} 35. Bf5 {[%clk 0:00:50.7]} 35... Bxf5 {[%clk 0:00:40.7]}
36. gxf5 {[%clk 0:00:50.4]} 36... b5 {[%clk 0:00:28.2]} 37. cxb5 {[%clk
0:00:48.8]} 37... Rxb5 {[%clk 0:00:27.9]} 38. Qe4 {[%clk 0:00:46.4]} 38... Rb2
{[%clk 0:00:16.5]} 39. g4 {[%clk 0:00:43.2]} 39... Qf7 {[%clk 0:00:13.8]} 40.
Qe6 {[%clk 0:00:36.5]} 40... Bf6 {[%clk 0:00:11.7]} 41. Qxd6 {[%clk 0:00:20.8]}
41... Qg7 {[%clk 0:00:11.4]} 42. Qe6+ {[%clk 0:00:21.1]} 42... Kh7 {[%clk
0:00:11.1]} 43. Kf1 {[%clk 0:00:16.4]} 43... Qxg4 {[%clk 0:00:09.3]} 44. Qf7+
{[%clk 0:00:15.4]} 44... Bg7 {[%clk 0:00:06.7]} 45. Qg6+ {[%clk 0:00:14.5]}
45... Qxg6 {[%clk 0:00:07.2]} 46. fxg6+ {[%clk 0:00:15.4]} 46... Kxg6 {[%clk
0:00:08]} 47. Bxc5 {[%clk 0:00:15]} 47... Rd2 {[%clk 0:00:07.9]} 48. d6 {[%clk
0:00:14.7]} 48... Kf5 {[%clk 0:00:06.7]} 49. Re7 {[%clk 0:00:14.9]} 49... Bf6
{[%clk 0:00:06.4]} 50. Rf7 {[%clk 0:00:15.3]} 50... Ke6 {[%clk 0:00:06]} 51. Rh7
{[%clk 0:00:15.2]} 51... Rd5 {[%clk 0:00:05.9]} 52. Ba3 {[%clk 0:00:10.7]} 52...
Rd3 {[%clk 0:00:06]} 53. Bc5 {[%clk 0:00:10.7]} 53... Rd5 {[%clk 0:00:06.2]} 54.
Be3 {[%clk 0:00:09.4]} 54... Rxd6 {[%clk 0:00:05.7]} 55. Rxh6 {[%clk 0:00:09.6]}
55... Kf5 {[%clk 0:00:06.2]} 56. Ke2 {[%clk 0:00:10]} 56... Be7 {[%clk
0:00:05.2]} 57. Rh5+ {[%clk 0:00:09.5]} 57... Kg6 {[%clk 0:00:05.2]} 58. Rb5
{[%clk 0:00:08.8]} 58... Bf6 {[%clk 0:00:05]} 59. Kf3 {[%clk 0:00:09.3]} 59...
Rd7 {[%clk 0:00:04.5]} 60. Rb1 {[%clk 0:00:08.2]} 60... Rc7 {[%clk 0:00:04.2]}
61. Rb6 {[%clk 0:00:08]} 61... Kf5 {[%clk 0:00:04.1]} 62. Rb5+ {[%clk
0:00:08.5]} 62... Kg6 {[%clk 0:00:04.5]} 63. Kg4 {[%clk 0:00:09.1]} 63... Rc4
{[%clk 0:00:04.4]} 64. Rb6 {[%clk 0:00:08.7]} 64... Ra4 {[%clk 0:00:04.4]} 65.
Bc5 {[%clk 0:00:08.2]} 65... Kf7 {[%clk 0:00:03.8]} 66. Kf5 {[%clk 0:00:08.7]}
66... Bd8 {[%clk 0:00:03.4]} 67. Rb7+ {[%clk 0:00:09.1]} 67... Ke8 {[%clk
0:00:03.7]} 68. Rh7 {[%clk 0:00:06.4]} 68... Rc4 {[%clk 0:00:03.3]} 69. Bd6
{[%clk 0:00:02.9]} 69... Ra4 {[%clk 0:00:02.5]} 70. Ke6 {[%clk 0:00:03.1]} 70...
Re4+ {[%clk 0:00:02.1]} 71. Be5 {[%clk 0:00:03.6]} 1-0

[Event "*** SCC Grand Prix: Titled Tuesday Blitz"]
[Site "Chess.com"]
[Date "2020.07.14"]
[Round "8"]
[White "SiddharthGMJagadeesh"]
[Black "tk22h"]
[Result "1-0"]
[WhiteElo "2518"]
[BlackElo "2320"]
[TimeControl "180+1"]
[EndTime "11:38:06 PDT"]
[Termination "SiddharthGMJagadeesh won on time"]

1. Nf3 {[%clk 0:03:00.9]} 1... Nf6 {[%clk 0:02:59.1]} 2. c4 {[%clk 0:02:59.7]}
2... c5 {[%clk 0:02:57.1]} 3. g3 {[%clk 0:02:58.7]} 3... Nc6 {[%clk 0:02:56.4]}
4. Bg2 {[%clk 0:02:58.4]} 4... e6 {[%clk 0:02:56.9]} 5. O-O {[%clk 0:02:57.5]}
5... d5 {[%clk 0:02:57.4]} 6. cxd5 {[%clk 0:02:57.2]} 6... Nxd5 {[%clk
0:02:58.3]} 7. d4 {[%clk 0:02:57]} 7... Be7 {[%clk 0:02:57.6]} 8. dxc5 {[%clk
0:02:55.9]} 8... Bxc5 {[%clk 0:02:55]} 9. Qc2 {[%clk 0:02:55.6]} 9... Be7 {[%clk
0:02:53.8]} 10. Rd1 {[%clk 0:02:53.3]} 10... Qb6 {[%clk 0:02:39.9]} 11. a3
{[%clk 0:02:40.4]} 11... O-O {[%clk 0:02:34.9]} 12. e4 {[%clk 0:02:37.4]} 12...
Nf6 {[%clk 0:02:34.1]} 13. Be3 {[%clk 0:02:36.7]} 13... Qc7 {[%clk 0:02:34]} 14.
Nc3 {[%clk 0:02:36.2]} 14... Bd7 {[%clk 0:02:32.4]} 15. Nb5 {[%clk 0:02:11.6]}
15... Qc8 {[%clk 0:02:25.9]} 16. Bf4 {[%clk 0:01:56]} 16... e5 {[%clk
0:02:00.6]} 17. Bg5 {[%clk 0:01:49.1]} 17... Be6 {[%clk 0:01:51.4]} 18. Rac1
{[%clk 0:01:38.1]} 18... a6 {[%clk 0:01:50.8]} 19. Nd6 {[%clk 0:01:24.9]} 19...
Bxd6 {[%clk 0:01:50.2]} 20. Rxd6 {[%clk 0:01:23.5]} 20... Nd4 {[%clk 0:01:44.6]}
21. Nxd4 {[%clk 0:01:20.1]} 21... exd4 {[%clk 0:01:44.2]} 22. e5 {[%clk
0:01:12.2]} 22... Qxc2 {[%clk 0:01:43.1]} 23. Rxc2 {[%clk 0:01:13.1]} 23... Nd7
{[%clk 0:01:38.7]} 24. Rxd4 {[%clk 0:00:57.2]} 24... Nxe5 {[%clk 0:01:27]} 25.
Bxb7 {[%clk 0:00:41.4]} 25... Rab8 {[%clk 0:01:26.9]} 26. Bg2 {[%clk 0:00:40.7]}
26... f6 {[%clk 0:01:26.5]} 27. Bf4 {[%clk 0:00:40.2]} 27... Rfd8 {[%clk
0:01:20.6]} 28. Rxd8+ {[%clk 0:00:33.6]} 28... Rxd8 {[%clk 0:01:20.4]} 29. Rd2
{[%clk 0:00:29.2]} 29... Rc8 {[%clk 0:01:15]} 30. Bd5 {[%clk 0:00:23.8]} 30...
Bxd5 {[%clk 0:01:05]} 31. Rxd5 {[%clk 0:00:24.7]} 31... Nc4 {[%clk 0:00:56.5]}
32. Rd7 {[%clk 0:00:15.3]} 32... Nxb2 {[%clk 0:00:52.5]} 33. Ra7 {[%clk
0:00:14.8]} 33... Rc6 {[%clk 0:00:47]} 34. Kg2 {[%clk 0:00:13.8]} 34... Nc4
{[%clk 0:00:45.5]} 35. a4 {[%clk 0:00:13.7]} 35... Nb2 {[%clk 0:00:41.1]} 36. a5
{[%clk 0:00:13.6]} 36... Nc4 {[%clk 0:00:41.2]} 37. Bc7 {[%clk 0:00:13.4]} 37...
h5 {[%clk 0:00:39.9]} 38. Bb6 {[%clk 0:00:12.6]} 38... Kh7 {[%clk 0:00:29.3]}
39. Rxa6 {[%clk 0:00:12.5]} 39... Nxa5 {[%clk 0:00:29.4]} 40. Rxa5 {[%clk
0:00:11.8]} 40... Rxb6 {[%clk 0:00:29.4]} 41. Rxh5+ {[%clk 0:00:12.7]} 41... Kg6
{[%clk 0:00:29.7]} 42. Rd5 {[%clk 0:00:13.6]} 42... Rb3 {[%clk 0:00:29.3]} 43.
h4 {[%clk 0:00:13.7]} 43... Kf7 {[%clk 0:00:29.2]} 44. Rd2 {[%clk 0:00:13.7]}
44... g6 {[%clk 0:00:29]} 45. Re2 {[%clk 0:00:14.1]} 45... f5 {[%clk 0:00:29]}
46. Re3 {[%clk 0:00:14.5]} 46... Rb2 {[%clk 0:00:27.3]} 47. Kf3 {[%clk
0:00:14.7]} 47... Rb4 {[%clk 0:00:27.2]} 48. Rd3 {[%clk 0:00:14.5]} 48... Ra4
{[%clk 0:00:26]} 49. Ke3 {[%clk 0:00:14.6]} 49... Re4+ {[%clk 0:00:24.8]} 50.
Kf3 {[%clk 0:00:14.2]} 50... Ra4 {[%clk 0:00:24.7]} 51. Ke3 {[%clk 0:00:12.3]}
51... Re4+ {[%clk 0:00:24]} 52. Kd2 {[%clk 0:00:12.8]} 52... Ra4 {[%clk
0:00:23.6]} 53. f3 {[%clk 0:00:12.9]} 53... Ra2+ {[%clk 0:00:21.7]} 54. Ke3
{[%clk 0:00:13.1]} 54... Ra4 {[%clk 0:00:20.1]} 55. Rd4 {[%clk 0:00:12.9]} 55...
Ra3+ {[%clk 0:00:20.3]} 56. Kf4 {[%clk 0:00:13.1]} 56... Kf6 {[%clk 0:00:20.6]}
57. Rd6+ {[%clk 0:00:12.6]} 57... Kf7 {[%clk 0:00:20.7]} 58. Rb6 {[%clk
0:00:11.3]} 58... Rc3 {[%clk 0:00:18.7]} 59. Rd6 {[%clk 0:00:10.9]} 59... Ra3
{[%clk 0:00:17.4]} 60. Rd4 {[%clk 0:00:10.7]} 60... Rb3 {[%clk 0:00:17]} 61. Rd2
{[%clk 0:00:10.1]} 61... Ra3 {[%clk 0:00:16.6]} 62. Re2 {[%clk 0:00:10]} 62...
Rb3 {[%clk 0:00:16.3]} 63. Re3 {[%clk 0:00:10.2]} 63... Rb1 {[%clk 0:00:14.1]}
64. Ra3 {[%clk 0:00:07.1]} 64... Rb7 {[%clk 0:00:08.3]} 65. Kg5 {[%clk
0:00:05.7]} 65... Kg7 {[%clk 0:00:06.1]} 66. Ra6 {[%clk 0:00:05.5]} 66... Rb3
{[%clk 0:00:05.2]} 67. Rxg6+ {[%clk 0:00:05.8]} 67... Kh7 {[%clk 0:00:05.1]} 68.
Rh6+ {[%clk 0:00:05.9]} 68... Kg7 {[%clk 0:00:04.5]} 69. Rg6+ {[%clk 0:00:04.3]}
69... Kh7 {[%clk 0:00:04.4]} 70. Rh6+ {[%clk 0:00:03.8]} 70... Kg7 {[%clk
0:00:03.9]} 71. Rd6 {[%clk 0:00:04.7]} 71... Rxf3 {[%clk 0:00:02.4]} 72. Rd7+
{[%clk 0:00:05.6]} 72... Kg8 {[%clk 0:00:01.5]} 73. g4 {[%clk 0:00:05.9]} 73...
fxg4 {[%clk 0:00:01.4]} 74. Kxg4 {[%clk 0:00:06.8]} 1-0

[Event "*** SCC Grand Prix: Titled Tuesday Blitz"]
[Site "Chess.com"]
[Date "2020.07.14"]
[Round "8"]
[White "Harsha_Bharathakoti"]
[Black "EvgenyT"]
[Result "0-1"]
[WhiteElo "2778"]
[BlackElo "2915"]
[TimeControl "180+1"]
[EndTime "11:39:38 PDT"]
[Termination "EvgenyT won on time"]

1. d4 {[%clk 0:03:00.9]} 1... Nf6 {[%clk 0:02:59.2]} 2. c4 {[%clk 0:03:01.2]}
2... e6 {[%clk 0:02:59.3]} 3. Nf3 {[%clk 0:03:00.8]} 3... b6 {[%clk 0:02:59.5]}
4. g3 {[%clk 0:03:00.8]} 4... Bb7 {[%clk 0:02:57.1]} 5. Bg2 {[%clk 0:03:00.8]}
5... Be7 {[%clk 0:02:57]} 6. O-O {[%clk 0:03:00.1]} 6... O-O {[%clk 0:02:57.1]}
7. Nc3 {[%clk 0:03:00.6]} 7... Ne4 {[%clk 0:02:55.4]} 8. Bd2 {[%clk 0:03:00.8]}
8... d6 {[%clk 0:02:48.2]} 9. Re1 {[%clk 0:02:57.3]} 9... Nd7 {[%clk 0:02:42.2]}
10. Qc2 {[%clk 0:02:57.5]} 10... Nxd2 {[%clk 0:02:40.5]} 11. Qxd2 {[%clk
0:02:58.4]} 11... g6 {[%clk 0:02:36.5]} 12. e4 {[%clk 0:02:57.7]} 12... Bf6
{[%clk 0:02:36]} 13. h4 {[%clk 0:02:36.1]} 13... Bg7 {[%clk 0:02:34.6]} 14. Rad1
{[%clk 0:02:25.9]} 14... Qe7 {[%clk 0:02:33.9]} 15. h5 {[%clk 0:01:59.3]} 15...
a6 {[%clk 0:02:33.3]} 16. a3 {[%clk 0:01:13.5]} 16... Rad8 {[%clk 0:02:31.3]}
17. Bh3 {[%clk 0:01:03.8]} 17... Nf6 {[%clk 0:02:19.9]} 18. hxg6 {[%clk
0:01:02]} 18... hxg6 {[%clk 0:02:19.8]} 19. Bg2 {[%clk 0:00:47.8]} 19... Rfe8
{[%clk 0:02:18.6]} 20. Qg5 {[%clk 0:00:28.1]} 20... Nh7 {[%clk 0:01:55]} 21. Qe3
{[%clk 0:00:26.9]} 21... Nf6 {[%clk 0:01:48.5]} 22. Qg5 {[%clk 0:00:26.4]} 22...
c5 {[%clk 0:01:20.4]} 23. d5 {[%clk 0:00:18.9]} 23... exd5 {[%clk 0:01:10.3]}
24. exd5 {[%clk 0:00:16.2]} 24... Qf8 {[%clk 0:01:09.2]} 25. Bh3 {[%clk
0:00:14.6]} 25... Rxe1+ {[%clk 0:01:07.7]} 26. Rxe1 {[%clk 0:00:15.5]} 26... Re8
{[%clk 0:01:07.4]} 27. Rxe8 {[%clk 0:00:09.8]} 27... Qxe8 {[%clk 0:01:07.3]} 28.
Qf4 {[%clk 0:00:08.8]} 28... Qe7 {[%clk 0:01:06.2]} 29. Nd2 {[%clk 0:00:04.8]}
29... Nh5 {[%clk 0:00:44.7]} 30. Qe4 {[%clk 0:00:04]} 30... Kf8 {[%clk
0:00:42.1]} 31. Bg2 {[%clk 0:00:02.8]} 31... Nf6 {[%clk 0:00:34.3]} 32. Qxe7+
{[%clk 0:00:01.8]} 32... Kxe7 {[%clk 0:00:34.3]} 33. Kf1 {[%clk 0:00:02.7]}
33... Bc8 {[%clk 0:00:31.8]} 34. Ke2 {[%clk 0:00:02.6]} 34... Bd7 {[%clk
0:00:32.1]} 35. Bf3 {[%clk 0:00:02.5]} 35... b5 {[%clk 0:00:31.8]} 36. b3 {[%clk
0:00:03.1]} 36... Ng4 {[%clk 0:00:28.3]} 37. Nd1 {[%clk 0:00:02.4]} 37... Ne5
{[%clk 0:00:27.8]} 38. Be4 {[%clk 0:00:02.4]} 38... f5 {[%clk 0:00:27.3]} 39.
Bc2 {[%clk 0:00:02.5]} 39... g5 {[%clk 0:00:25.5]} 40. f4 {[%clk 0:00:02.3]}
40... gxf4 {[%clk 0:00:24.5]} 41. gxf4 {[%clk 0:00:03.2]} 41... Ng6 {[%clk
0:00:24.8]} 42. Ne3 {[%clk 0:00:04]} 42... Kf6 {[%clk 0:00:21.8]} 43. Ng2 {[%clk
0:00:03.8]} 43... Bh6 {[%clk 0:00:21.6]} 44. Kf3 {[%clk 0:00:04.4]} 44... Ne7
{[%clk 0:00:20.3]} 45. Nf1 {[%clk 0:00:04.3]} 45... bxc4 {[%clk 0:00:19.8]} 46.
bxc4 {[%clk 0:00:04.4]} 46... Ng6 {[%clk 0:00:17.2]} 47. Nfe3 {[%clk 0:00:05.1]}
47... Bc8 {[%clk 0:00:17.4]} 48. Ba4 {[%clk 0:00:04.7]} 48... Ne7 {[%clk
0:00:15.8]} 49. Nh4 {[%clk 0:00:04.3]} 49... Ng6 {[%clk 0:00:15.2]} 50. Nxg6
{[%clk 0:00:04.2]} 50... Kxg6 {[%clk 0:00:15.3]} 51. Be8+ {[%clk 0:00:05.1]}
51... Kf6 {[%clk 0:00:15.2]} 52. Bc6 {[%clk 0:00:05.1]} 52... Ke7 {[%clk
0:00:15]} 53. Ba4 {[%clk 0:00:04.5]} 53... Bg7 {[%clk 0:00:14.9]} 54. Bc2 {[%clk
0:00:04.4]} 54... Kf6 {[%clk 0:00:15]} 55. Ba4 {[%clk 0:00:03.7]} 55... Kg6
{[%clk 0:00:14.6]} 56. Be8+ {[%clk 0:00:02.5]} 56... Kf6 {[%clk 0:00:13.9]} 57.
Bc6 {[%clk 0:00:02.8]} 57... Bh8 {[%clk 0:00:13.6]} 58. Ba4 {[%clk 0:00:03.5]}
58... Kf7 {[%clk 0:00:13.7]} 59. Bc2 {[%clk 0:00:03.5]} 59... Kg6 {[%clk
0:00:14]} 60. Kg3 {[%clk 0:00:02.9]} 60... Bb2 {[%clk 0:00:13.7]} 61. Kf3 {[%clk
0:00:03.6]} 61... Bxa3 {[%clk 0:00:13.6]} 62. Ba4 {[%clk 0:00:04.3]} 62... Bc1
{[%clk 0:00:13.2]} 63. Ng2 {[%clk 0:00:04.4]} 63... Kf6 {[%clk 0:00:12.5]} 64.
Ne1 {[%clk 0:00:04]} 64... Bd2 {[%clk 0:00:12]} 65. Nd3 {[%clk 0:00:04.5]} 65...
Ke7 {[%clk 0:00:11.1]} 66. Ke2 {[%clk 0:00:05.1]} 66... Bc3 {[%clk 0:00:11.2]}
67. Kd1 {[%clk 0:00:05.3]} 67... Bd4 {[%clk 0:00:11.1]} 68. Kc2 {[%clk 0:00:06]}
68... Kf6 {[%clk 0:00:11.1]} 69. Kd2 {[%clk 0:00:06.7]} 69... Kg6 {[%clk
0:00:11]} 70. Be8+ {[%clk 0:00:06.6]} 70... Kg7 {[%clk 0:00:11]} 71. Ke2 {[%clk
0:00:07.4]} 71... Kf8 {[%clk 0:00:10.7]} 72. Ba4 {[%clk 0:00:07.4]} 72... Ke7
{[%clk 0:00:10.8]} 73. Kd2 {[%clk 0:00:08]} 73... Kf6 {[%clk 0:00:09.4]} 74. Ke2
{[%clk 0:00:08.4]} 74... Bc3 {[%clk 0:00:09.4]} 75. Kd1 {[%clk 0:00:08.5]} 75...
Ba1 {[%clk 0:00:08.9]} 76. Kd2 {[%clk 0:00:08.6]} 76... Bd4 {[%clk 0:00:08.6]}
77. Ke2 {[%clk 0:00:09.2]} 77... Kg6 {[%clk 0:00:08.1]} 78. Be8+ {[%clk
0:00:08.7]} 78... Kh6 {[%clk 0:00:08.1]} 79. Kd2 {[%clk 0:00:08.3]} 79... a5
{[%clk 0:00:08.1]} 80. Ke2 {[%clk 0:00:06]} 80... Ba6 {[%clk 0:00:07.3]} 81. Bb5
{[%clk 0:00:06.7]} 81... Bc8 {[%clk 0:00:07.1]} 82. Kf3 {[%clk 0:00:05.9]} 82...
Kh5 {[%clk 0:00:06.9]} 83. Kg3 {[%clk 0:00:05.6]} 83... Bc3 {[%clk 0:00:07.1]}
84. Be8+ {[%clk 0:00:05.7]} 84... Kh6 {[%clk 0:00:07.3]} 85. Kf3 {[%clk
0:00:06.6]} 85... Kg7 {[%clk 0:00:07.2]} 86. Bb5 {[%clk 0:00:07.1]} 86... Kf8
{[%clk 0:00:07.2]} 87. Ke2 {[%clk 0:00:07.8]} 87... Ke7 {[%clk 0:00:06.9]} 88.
Kd1 {[%clk 0:00:08.6]} 88... Bd7 {[%clk 0:00:07.2]} 89. Bxd7 {[%clk 0:00:05.4]}
89... Kxd7 {[%clk 0:00:06.8]} 90. Kc2 {[%clk 0:00:06.3]} 90... Bd4 {[%clk
0:00:06.4]} 91. Kb3 {[%clk 0:00:06.7]} 91... Kc7 {[%clk 0:00:06.7]} 92. Ka4
{[%clk 0:00:07.4]} 92... Kb6 {[%clk 0:00:06.9]} 93. Kb3 {[%clk 0:00:06.4]} 93...
Be3 {[%clk 0:00:07]} 94. Ka4 {[%clk 0:00:06.2]} 94... Bd2 {[%clk 0:00:07.1]} 95.
Kb3 {[%clk 0:00:05.1]} 95... Ka6 {[%clk 0:00:07]} 96. Ka4 {[%clk 0:00:05.6]}
96... Kb7 {[%clk 0:00:07]} 97. Kb5 {[%clk 0:00:05.4]} 97... Bc3 {[%clk 0:00:06]}
98. Nf2 {[%clk 0:00:04.7]} 98... Bd2 {[%clk 0:00:06]} 99. Nh3 {[%clk 0:00:03.2]}
99... Bc3 {[%clk 0:00:05.1]} 100. Ng1 {[%clk 0:00:02]} 100... Bd2 {[%clk
0:00:05.2]} 101. Ne2 {[%clk 0:00:02.6]} 101... Kc7 {[%clk 0:00:05.2]} 102. Ng3
{[%clk 0:00:02.8]} 102... Bxf4 {[%clk 0:00:04.7]} 103. Nxf5 {[%clk 0:00:03.5]}
103... Bd2 {[%clk 0:00:05]} 104. Ng7 {[%clk 0:00:03.6]} 104... Bb4 {[%clk
0:00:04.9]} 105. Ne6+ {[%clk 0:00:02.6]} 105... Kd7 {[%clk 0:00:05.1]} 106. Nf4
{[%clk 0:00:01.5]} 106... Ke7 {[%clk 0:00:05]} 0-1

[Event "*** SCC Grand Prix: Titled Tuesday Blitz"]
[Site "Chess.com"]
[Date "2020.07.14"]
[Round "9"]
[White "Ermito2020"]
[Black "otrov-11"]
[Result "1-0"]
[WhiteElo "2515"]
[BlackElo "2365"]
[TimeControl "180+1"]
[EndTime "11:42:06 PDT"]
[Termination "Ermito2020 won by resignation"]

1. e4 {[%clk 0:03:00.9]} 1... e6 {[%clk 0:03:00.4]} 2. d4 {[%clk 0:03:00]} 2...
d5 {[%clk 0:03:01.1]} 3. Nc3 {[%clk 0:03:00.6]} 3... Bb4 {[%clk 0:03:00.7]} 4.
e5 {[%clk 0:03:00.4]} 4... c5 {[%clk 0:03:01]} 5. a3 {[%clk 0:03:01]} 5... Bxc3+
{[%clk 0:03:01.5]} 6. bxc3 {[%clk 0:03:01.5]} 6... Ne7 {[%clk 0:03:02.3]} 7. Qg4
{[%clk 0:03:01.9]} 7... Qc7 {[%clk 0:03:01.8]} 8. Qxg7 {[%clk 0:03:01.5]} 8...
Rg8 {[%clk 0:03:02.1]} 9. Qxh7 {[%clk 0:03:01.8]} 9... cxd4 {[%clk 0:03:03]} 10.
Ne2 {[%clk 0:03:02.3]} 10... Nbc6 {[%clk 0:03:03.3]} 11. f4 {[%clk 0:03:03]}
11... dxc3 {[%clk 0:03:03.4]} 12. h4 {[%clk 0:03:03.3]} 12... Bd7 {[%clk
0:03:02.2]} 13. h5 {[%clk 0:03:03.8]} 13... O-O-O {[%clk 0:02:59]} 14. Qd3
{[%clk 0:03:03.2]} 14... d4 {[%clk 0:02:54.7]} 15. h6 {[%clk 0:03:03.1]} 15...
a6 {[%clk 0:02:53.8]} 16. h7 {[%clk 0:03:01.9]} 16... Rg6 {[%clk 0:02:52.4]} 17.
h8=Q {[%clk 0:03:00]} 17... Rxh8 {[%clk 0:02:18.8]} 18. Rxh8+ {[%clk 0:02:58.8]}
18... Nd8 {[%clk 0:02:19.7]} 19. Nxd4 {[%clk 0:02:50.2]} 1-0